bitfinex/quotes_SOLUSD_20250919
["timestamp","ask_amount","ask_price","bid_price","bid_amount"]
[1758303971337,32.76,237.5,237.46,1.48392427]
[1758303971516,32.76,237.5,237.47,0.71]
[1758303971709,32.76,237.5,237.48,0.71]
[1758303972932,32.76,237.5,237.49,0.71]
[1758303973436,32.76,237.5,237.47,2.19392427]
[1758303973731,32.76,237.5,237.47,1.48392427]
[1758303974034,32.76,237.5,237.48,0.71]
[1758303974214,32.76,237.5,237.45,1.48392427]
[1758303974414,33.42,237.5,237.45,2.19392427]
[1758303974620,0.66,237.49,237.45,2.19392427]
[1758303974836,32.76,237.48,237.46,0.71]
[1758303975020,32.76,237.48,237.46,81.11]
[1758303975423,32.76,237.48,237.46,80.4]
[1758303975622,32.76,237.48,237.46,81.11]
[1758303977034,0.66,237.52,237.47,0.71]
[1758303977337,31.2,237.48,237.46,80.4]
[1758303977523,32.76,237.47,237.46,81.11]
[1758303983842,32.76,237.47,237.46,80.4]
[1758303984740,33.42,237.47,237.46,80.4]
[1758303984937,33.42,237.47,237.41,80.5]
[1758303985140,0.66,237.51,237.45,1.48392427]
[1758303985333,31.2,237.47,237.46,0.68]
[1758303985540,63.96,237.47,237.46,81.08]
[1758303985840,1.48392427,237.59,237.46,85.29116931]
[1758303986071,0.68,237.54,237.5,1.48392427]
[1758303986345,32.76,237.53,237.5,1.48392427]
[1758303986542,0.68,237.54,237.5,2.16392427]
[1758303986757,32.76,237.53,237.5,2.16392427]
[1758303986954,31.2,237.58,237.51,0.68]
[1758303987247,24.59132479,237.62,237.55,1.48392427]
[1758303987553,31.2,237.58,237.55,1.48392427]
[1758303987764,32.76,237.57,237.53,2.16392427]
[1758303988057,0.68,237.56,237.5,0.68]
[1758303988244,0.68,237.56,237.5,2.16392427]
[1758303988432,32.76,237.57,237.51,0.68]
[1758303989228,32.76,237.57,237.47,0.68]
[1758303989229,31.2,237.54,237.47,0.68]
[1758303989550,32.76,237.53,237.47,0.68]
[1758303989728,33.44,237.53,237.47,0.68]
[1758303992650,0.68,237.58,237.51,1.48392427]
[1758303992853,31.2,237.54,237.52,0.68]
[1758303993035,32.76,237.53,237.52,0.68]
[1758303993237,31.2,237.54,237.52,0.68]
[1758303993542,32.76,237.53,237.52,0.68]
[1758303993861,31.2,237.59,237.53,0.68]
[1758303994047,35.5554446,237.58,237.54,1.48392427]
[1758303994244,0.68,237.6,237.55,0.68]
[1758303994555,32.76,237.57,237.53,1.48392427]
[1758303994748,32.76,237.57,237.53,2.16392427]
[1758303995057,32.76,237.57,237.54,0.68]
[1758303995736,32.76,237.57,237.53,1.48392427]
[1758303996260,32.76,237.57,237.54,0.68]
[1758303996635,31.2,237.59,237.55,2.16392427]
[1758303996865,32.76,237.56,237.53,4.20994717]
[1758303997169,23.91132479,237.62,237.55,1.48392427]
[1758303997335,2.79769585,237.61,237.56,0.68]
[1758303997545,2.79769585,237.61,237.6,1.48392427]
[1758303997861,35.55769585,237.61,237.6,2.16392427]
[1758303998357,35.55769585,237.61,237.6,1.48392427]
[1758303998529,2.79769585,237.61,237.6,1.48392427]
[1758303998735,32.76,237.61,237.6,1.48392427]
[1758303999362,32.76,237.61,237.6,82.56392427]
[1758303999961,23.91132479,237.62,237.6,82.56392427]
[1758304000144,32.76,237.61,237.6,82.56392427]
[1758304001153,32.76,237.61,237.6,81.88392427]
[1758304002268,23.91132479,237.62,237.6,82.56392427]
[1758304002449,23.91132479,237.62,237.61,2.16392427]
[1758304002450,56.67132479,237.62,237.61,2.16392427]
[1758304004455,56.67132479,237.62,237.61,1.48392427]
[1758304005473,56.67132479,237.62,237.61,81.88392427]
[1758304007574,56.67132479,237.62,237.61,80.4]
[1758304007772,56.67132479,237.62,237.61,81.88392427]
[1758304009173,56.67132479,237.62,237.61,80.4]
[1758304009373,57.35132479,237.62,237.61,80.4]
[1758304009664,60.15078664,237.62,237.61,80.4]
[1758304010375,27.39078664,237.62,237.61,80.4]
[1758304010557,60.13078664,237.62,237.61,80.4]
[1758304012460,61.61471091,237.62,237.61,80.4]
[1758304013775,60.13078664,237.62,237.61,80.4]
[1758304015679,61.61471091,237.62,237.61,80.4]
[1758304016069,31.2,237.59,237.55,80.4]
[1758304016377,31.2,237.56,237.55,80.4]
[1758304016568,63.94,237.56,237.55,80.4]
[1758304023588,68.9431349,237.56,237.55,80.4]
[1758304024589,68.9431349,237.56,237.47,131.2]
[1758304024590,68.9431349,237.56,237.47,80.4]
[1758304024796,68.9431349,237.56,237.46,0.7]
[1758304024797,3.51921063,237.55,237.46,0.7]
[1758304024961,32.68392427,237.52,237.46,0.7]
[1758304025161,32.74,237.51,237.46,0.7]
[1758304025574,33.46,237.51,237.46,0.7]
[1758304025772,33.46,237.51,237.44,82.72019829]
[1758304026093,32.74,237.51,237.45,0.7]
[1758304026274,33.52019829,237.52,237.45,0.7]
[1758304026478,63.94,237.51,237.46,2.32019829]
[1758304026688,32.74,237.5,237.47,0.7]
[1758304027186,32.74,237.5,237.48,0.7]
[1758304027589,32.74,237.5,237.46,2.32019829]
[1758304027891,32.74,237.5,237.47,0.7]
[1758304028389,32.74,237.5,237.48,0.7]
[1758304028992,31.2,237.51,237.49,0.7]
[1758304029190,3.04019829,237.56,237.49,0.7]
[1758304029403,31.2,237.52,237.49,0.7]
[1758304029692,0.72,237.59,237.51,2.32019829]
[1758304029871,0.72,237.59,237.5,0.7]
[1758304029872,32.74,237.58,237.53,2.32019829]
[1758304030073,2.80079311,237.57,237.53,3.02019829]
[1758304030278,32.74,237.56,237.54,2.32019829]
[1758304030676,32.74,237.56,237.53,0.7]
[1758304030877,32.74,237.56,237.54,2.32019829]
[1758304031895,32.74,237.56,237.53,3.02019829]
[1758304033316,0.72,237.59,237.54,0.7]
[1758304033473,2.80241832,237.59,237.58,2.32019829]
[1758304033678,32.74,237.59,237.58,3.02019829]
[1758304034015,35.54241832,237.59,237.58,3.02019829]
[1758304034174,31.2,237.6,237.58,3.02019829]
[1758304034375,0.72,237.64,237.59,0.7]
[1758304034676,35.54296303,237.62,237.6,2.32019829]
[1758304034883,2.80296303,237.61,237.6,2.32019829]
[1758304035084,2.80296303,237.61,237.58,2.32019829]
[1758304035288,32.74,237.6,237.58,2.32019829]
[1758304036377,32.74,237.59,237.58,2.32019829]
[1758304037375,32.74,237.59,237.58,3.02019829]
[1758304038388,35.54367138,237.59,237.58,3.02019829]
[1758304038703,35.54367138,237.59,237.58,2.32019829]
[1758304038992,35.54367138,237.59,237.58,3.02019829]
[1758304041502,35.54367138,237.59,237.54,80.4]
[1758304041695,32.74,237.59,237.57,2.32019829]
[1758304041894,32.74,237.59,237.57,3.02019829]
[1758304042298,32.74,237.59,237.58,3.02019829]
[1758304042697,29.85080515,237.63,237.58,3.02019829]
[1758304042894,29.85080515,237.63,237.54,215.8097765]
[1758304042895,35.54394197,237.62,237.59,3.02019829]
[1758304043106,2.80394197,237.61,237.6,0.7]
[1758304043314,2.80411875,237.62,237.61,78.29605803]
[1758304043516,35.54411875,237.62,237.61,80.61625632]
[1758304044195,35.54411875,237.62,237.61,79.91625632]
[1758304044411,32.74,237.62,237.61,79.91625632]
[1758304044581,32.74,237.62,237.61,77.59605803]
[1758304046986,32.74,237.62,237.61,79.91625632]
[1758304047506,29.85080515,237.63,237.61,79.91625632]
[1758304047694,32.72,237.62,237.61,79.91625632]
[1758304049711,29.85080515,237.63,237.61,80.57625632]
[1758304049904,29.85080515,237.63,237.62,0.66]
[1758304050286,62.57080515,237.63,237.62,0.66]
[1758304050488,62.57080515,237.63,237.61,208.79605803]
[1758304051007,62.57080515,237.63,237.61,211.11625632]
[1758304051210,62.57080515,237.63,237.61,208.79605803]
[1758304051413,0.1,237.69,237.63,47.74525288]
[1758304051597,32.72,237.68,237.64,2.32019829]
[1758304051804,33.43,237.68,237.64,2.32019829]
[1758304052318,0.71,237.67,237.64,2.32019829]
[1758304052486,32.72,237.66,237.64,2.32019829]
[1758304055995,32.72,237.66,237.64,50.06545117]
[1758304056496,0.71,237.67,237.64,50.06545117]
[1758304056696,32.72,237.66,237.64,50.06545117]
[1758304057597,32.72,237.66,237.65,0.66]
[1758304058025,32.72,237.66,237.65,48.40525288]
[1758304059507,0.1,237.69,237.65,48.40525288]
[1758304059707,32.72,237.68,237.67,2.32019829]
[1758304060013,32.72,237.68,237.67,2.98019829]
[1758304061801,32.72,237.68,237.67,54.93296579]
[1758304062000,32.72,237.68,237.67,50.72545117]
[1758304064940,32.72,237.68,237.67,47.74525288]
[1758304064941,33.43,237.68,237.67,47.74525288]
[1758304065521,36.2311766,237.68,237.67,47.74525288]
[1758304066502,35.5011766,237.68,237.67,47.74525288]
[1758304066702,36.2111766,237.68,237.67,47.74525288]
[1758304067319,38.53137489,237.68,237.67,47.74525288]
[1758304075514,36.2111766,237.68,237.67,47.74525288]
[1758304075711,38.53137489,237.68,237.67,47.74525288]
[1758304077942,31.2,237.65,237.62,47.74525288]
[1758304078145,35.5011766,237.64,237.62,47.74525288]
[1758304078346,2.8011766,237.63,237.62,47.74525288]
[1758304079834,2.8011766,237.63,237.62,48.43525288]
[1758304081618,31.2,237.68,237.62,48.43525288]
[1758304081943,31.2,237.64,237.62,47.74525288]
[1758304082120,32.7,237.63,237.62,47.74525288]
[1758304086025,32.7,237.63,237.62,48.43525288]
[1758304086850,2.32019829,237.66,237.62,48.43525288]
[1758304087028,32.7,237.65,237.62,47.74525288]
[1758304088028,31.2,237.63,237.62,47.74525288]
[1758304088232,33.41,237.63,237.62,47.74525288]
[1758304088448,34.89299527,237.63,237.59,47.74525288]
[1758304088630,31.2,237.6,237.59,47.74525288]
[1758304088829,63.9,237.6,237.59,47.74525288]
[1758304091740,64.61,237.6,237.59,47.74525288]
[1758304091957,66.09299527,237.6,237.59,47.74525288]
[1758304096947,34.89299527,237.6,237.59,47.74525288]
[1758304101031,34.18299527,237.6,237.59,47.74525288]
[1758304102642,31.2,237.63,237.59,0.69]
[1758304102852,32.68,237.62,237.6,1.48299527]
[1758304103148,14.13988801,237.67,237.6,1.48299527]
[1758304103149,12.65689274,237.67,237.61,2.17299527]
[1758304103358,32.68,237.66,237.62,2.17299527]
[1758304103706,63.88,237.65,237.63,0.69]
[1758304103840,32.68,237.65,237.61,49.22824815]
[1758304104037,0.1,237.69,237.64,0.69]
[1758304104352,31.2,237.65,237.61,49.22824815]
[1758304104538,32.68,237.64,237.61,49.22824815]
[1758304104741,32.68,237.63,237.62,0.69]
[1758304105360,32.68,237.63,237.61,47.74525288]
[1758304105662,32.68,237.63,237.52,13.59559401]
[1758304105663,31.2,237.6,237.56,0.69]
[1758304105866,31.2,237.57,237.56,0.69]
[1758304106036,63.88,237.57,237.56,0.69]
[1758304106237,63.88,237.57,237.54,0.69]
[1758304106483,1.48299527,237.56,237.53,0.69]
[1758304106660,32.68,237.55,237.53,0.69]
[1758304107061,32.68,237.55,237.49,47.74525288]
[1758304107062,32.68,237.55,237.51,0.69]
[1758304107260,32.68,237.55,237.52,0.69]
[1758304107658,32.68,237.55,237.49,47.74525288]
[1758304107867,32.68,237.55,237.49,48.43525288]
[1758304107868,1.48299527,237.54,237.49,48.43525288]
[1758304108168,31.2,237.51,237.5,0.69]
[1758304108369,32.68,237.51,237.5,0.69]
[1758304112273,32.68,237.51,237.5,48.43525288]
[1758304113558,1.48299527,237.57,237.5,48.43525288]
[1758304113753,31.2,237.53,237.5,48.43525288]
[1758304114068,32.68,237.52,237.5,48.43525288]
[1758304114560,32.68,237.52,237.5,49.91824815]
[1758304115268,1.48299527,237.57,237.5,49.91824815]
[1758304115461,31.2,237.53,237.5,49.91824815]
[1758304115650,32.68,237.52,237.5,49.91824815]
[1758304116052,32.68,237.51,237.5,54.12877446]
[1758304116667,31.2,237.59,237.5,54.12877446]
[1758304116873,35.4899044,237.58,237.53,1.48299527]
[1758304117178,2.8099044,237.57,237.53,49.22824815]
[1758304117866,32.68,237.56,237.53,47.74525288]
[1758304118058,2.8099044,237.55,237.53,47.74525288]
[1758304118972,32.68,237.54,237.53,47.74525288]
[1758304119654,32.68,237.54,237.53,48.43525288]
[1758304120472,32.68,237.54,237.53,47.74525288]
[1758304120678,32.68,237.54,237.53,48.43525288]
[1758304121873,32.68,237.54,237.53,47.74525288]
[1758304122767,35.49397983,237.54,237.53,47.74525288]
[1758304122969,32.68,237.54,237.53,47.74525288]
[1758304123171,35.49397566,237.54,237.53,47.74525288]
[1758304124486,36.20437475,237.54,237.53,47.74525288]
[1758304125384,35.49437475,237.54,237.53,47.74525288]
[1758304125687,36.20437475,237.54,237.53,47.74525288]
[1758304126572,35.49437475,237.54,237.53,47.74525288]
[1758304128973,36.20437475,237.54,237.53,47.74525288]
[1758304129580,35.49437475,237.54,237.53,47.74525288]
[1758304131088,36.20437475,237.54,237.53,47.74525288]
[1758304131684,35.49437475,237.54,237.53,47.74525288]
[1758304135091,35.49654742,237.54,237.53,47.74525288]
[1758304142982,36.16654742,237.54,237.53,47.74525288]
[1758304143879,35.49654742,237.54,237.53,47.74525288]
[1758304148909,35.45654742,237.54,237.53,47.74525288]
[1758304149310,36.12654742,237.54,237.53,47.74525288]
[1758304149513,35.45654742,237.54,237.53,47.74525288]
[1758304150494,2.81654742,237.54,237.53,47.74525288]
[1758304150806,63.84,237.54,237.53,47.74525288]
[1758304151005,66.65654742,237.54,237.53,47.74525288]
[1758304152530,34.01654742,237.54,237.53,47.74525288]
[1758304152810,66.65654742,237.54,237.53,47.74525288]
[1758304153007,34.01654742,237.54,237.53,47.74525288]
[1758304153384,66.65654742,237.54,237.53,47.74525288]
[1758304154013,34.01654742,237.54,237.53,47.74525288]
[1758304154194,66.65654742,237.54,237.53,47.74525288]
[1758304154917,34.01654742,237.54,237.53,47.74525288]
[1758304155220,66.65654742,237.54,237.53,47.74525288]
[1758304155518,66.66268626,237.54,237.53,47.74525288]
[1758304157113,34.02268626,237.54,237.53,47.74525288]
[1758304157414,66.66268626,237.54,237.53,47.74525288]
[1758304157627,34.02268626,237.54,237.53,47.74525288]
[1758304157818,66.66268626,237.54,237.53,48.45525288]
[1758304158288,69.65211938,237.54,237.53,47.74525288]
[1758304158492,73.1804772,237.54,237.53,47.74525288]
[1758304159094,69.65211938,237.54,237.53,47.74525288]
[1758304159297,73.17998775,237.54,237.53,47.74525288]
[1758304159912,69.65211938,237.54,237.53,47.74525288]
[1758304160700,36.13268626,237.54,237.45,47.74525288]
[1758304161019,34.72627948,237.5,237.46,0.71]
[1758304161218,35.46268626,237.49,237.45,48.45525288]
[1758304161513,31.2,237.47,237.46,0.71]
[1758304161716,66.66268626,237.47,237.46,0.71]
[1758304164522,34.02268626,237.47,237.46,0.71]
[1758304164731,35.46268626,237.47,237.46,0.71]
[1758304165645,35.46268626,237.47,237.46,48.45525288]
[1758304167729,2.82268626,237.47,237.46,48.45525288]
[1758304167933,32.64,237.47,237.46,48.45525288]
[1758304168133,35.46268626,237.47,237.46,48.45525288]
[1758304168837,35.46268626,237.47,237.46,47.74525288]
[1758304169132,35.46268626,237.47,237.44,0.71]
[1758304169300,2.82268626,237.46,237.43,0.71]
[1758304169501,32.64,237.45,237.43,0.71]
[1758304169716,2.82268626,237.44,237.43,0.71]
[1758304169919,2.82268626,237.44,237.41,0.1]
[1758304170119,32.64,237.43,237.41,0.81]
[1758304170329,32.64,237.43,237.42,0.71]
[1758304170512,35.45867049,237.43,237.42,0.71]
[1758304174423,32.64,237.43,237.42,0.71]
[1758304174626,32.64,237.44,237.43,15.10525288]
[1758304174815,32.64,237.44,237.43,15.81525288]
[1758304175022,2.31943312,237.51,237.43,4.734686]
[1758304175222,3.52627948,237.57,237.45,2.31943312]
[1758304175223,32.62,237.5,237.45,2.31943312]
[1758304175517,36.12560679,237.49,237.45,0.71]
[1758304175729,35.43560679,237.48,237.45,0.71]
[1758304176042,32.62,237.48,237.45,0.71]
[1758304178421,32.62,237.48,237.44,2.31943312]
[1758304178617,32.62,237.48,237.45,0.71]
[1758304178832,31.2,237.49,237.45,0.71]
[1758304179027,35.43578893,237.48,237.46,3.02943312]
[1758304179237,33.31,237.48,237.46,2.31943312]
[1758304179433,32.62,237.48,237.46,2.31943312]
[1758304179724,0.69,237.52,237.46,2.31943312]
[1758304180033,63.82,237.51,237.47,0.71]
[1758304180219,2.81592426,237.5,237.47,0.71]
[1758304180419,32.62,237.49,237.47,0.71]
[1758304180634,2.81592426,237.48,237.47,0.71]
[1758304183550,0.69,237.54,237.47,2.41525288]
[1758304183730,2.81644332,237.55,237.5,2.31943312]
[1758304184053,32.62,237.54,237.51,3.02943312]
[1758304184258,2.81644332,237.53,237.51,3.02943312]
[1758304184430,2.81644332,237.53,237.51,2.31943312]
[1758304189441,2.81644332,237.53,237.51,4.024686]
[1758304190258,2.81644332,237.53,237.51,1.70525288]
[1758304190751,2.81644332,237.53,237.51,2.41525288]
[1758304191150,2.81644332,237.53,237.51,1.70525288]
[1758304191665,2.81644332,237.53,237.51,2.41525288]
[1758304192466,2.81644332,237.53,237.51,1.70525288]
[1758304192975,35.41644332,237.53,237.52,3.02943312]
[1758304193636,35.41644332,237.53,237.52,2.31943312]
[1758304194043,35.41644332,237.53,237.51,1.70525288]
[1758304194252,2.81644332,237.52,237.51,1.70525288]
[1758304194651,3.50644332,237.52,237.51,1.70525288]
[1758304197257,2.81644332,237.52,237.51,1.70525288]
[1758304200668,5.82587644,237.52,237.51,1.70525288]
[1758304200964,31.2,237.49,237.44,1.70525288]
[1758304201145,33.51943312,237.45,237.44,1.70525288]
[1758304201345,69.62587644,237.45,237.44,1.70525288]
[1758304201863,66.61644332,237.45,237.44,1.70525288]
[1758304202275,67.30644332,237.45,237.44,1.70525288]
[1758304203078,66.61644332,237.45,237.44,1.70525288]
[1758304206649,69.62587644,237.45,237.44,1.70525288]
[1758304206871,69.62587644,237.45,237.41,1.80525288]
[1758304207076,31.2,237.42,237.41,1.80525288]
[1758304207366,66.61644332,237.42,237.41,1.80525288]
[1758304207568,69.62587644,237.42,237.41,1.80525288]
[1758304209673,69.62587644,237.42,237.41,0.1]
[1758304209878,68.79270355,237.42,237.41,0.1]
[1758304213458,67.30644332,237.42,237.41,0.1]
[1758304214162,2.81644332,237.42,237.41,0.71]
[1758304214354,31.22,237.42,237.41,0.71]
[1758304214682,31.22,237.42,237.39,2.19477488]
[1758304214882,31.22,237.42,237.4,0.71]
[1758304216174,31.22,237.42,237.4,1.99477488]
[1758304216379,2.8120488,237.41,237.4,1.99477488]
[1758304217384,31.22,237.42,237.4,1.99477488]
[1758304217550,31.22,237.42,237.4,2.77103511]
[1758304217892,31.22,237.42,237.41,0.71]
[1758304219559,31.22,237.42,237.41,2.19626023]
[1758304220160,31.22,237.42,237.41,0.71]
[1758304221987,31.22,237.42,237.41,1.99477488]
[1758304222687,31.22,237.42,237.41,1.28477488]
[1758304225093,34.72245451,237.42,237.41,1.28477488]
[1758304225269,36.20871474,237.42,237.41,1.28477488]
[1758304229985,34.72245451,237.42,237.41,1.28477488]
[1758304230193,36.20871474,237.42,237.41,1.28477488]
[1758304231979,34.72245451,237.42,237.41,1.28477488]
[1758304232175,34.72245451,237.42,237.38,0.2]
[1758304232176,31.2,237.39,237.38,1.48477488]
[1758304232486,63.78,237.39,237.38,1.48477488]
[1758304234478,64.44,237.39,237.38,1.48477488]
[1758304234686,67.25353052,237.39,237.38,1.48477488]
[1758304235119,66.59353052,237.39,237.38,2.17477488]
[1758304235411,66.59353052,237.39,237.38,1.48477488]
[1758304236711,67.25407736,237.39,237.38,1.48477488]
[1758304238496,68.74033759,237.39,237.38,1.48477488]
[1758304239011,68.74033759,237.39,237.38,0.2]
[1758304243509,35.50033759,237.39,237.38,0.2]
[1758304243819,66.59407736,237.39,237.38,0.89]
[1758304243995,66.59407736,237.39,237.38,0.2]
[1758304244196,68.74033759,237.39,237.38,0.2]
[1758304244414,67.25407736,237.39,237.38,0.2]
[1758304244621,68.08033759,237.39,237.38,0.2]
[1758304246409,66.59407736,237.39,237.38,0.2]
[1758304246615,68.08033759,237.39,237.38,0.2]
[1758304246942,66.59407736,237.39,237.38,0.89]
[1758304247105,2.81407736,237.39,237.38,6.58891504]
[1758304247417,2.81407736,237.4,237.38,2.37626023]
[1758304247609,2.81407736,237.4,237.39,0.69]
[1758304248313,2.81407736,237.4,237.39,2.17626023]
[1758304249923,2.81407736,237.4,237.39,0.69]
[1758304252627,2.81407736,237.4,237.39,6.38873758]
[1758304252939,33.19980835,237.41,237.4,13.59559401]
[1758304253104,33.19980835,237.41,237.4,15.77185424]
[1758304254849,33.19980835,237.41,237.4,19.98415415]
[1758304255140,33.19980835,237.41,237.4,4.90229991]
[1758304255437,33.19980835,237.41,237.4,6.38856014]
[1758304255842,33.19980835,237.41,237.4,4.90229991]
[1758304256146,33.19980835,237.41,237.4,6.38856014]
[1758304256814,33.19980835,237.41,237.4,4.90229991]
[1758304257016,33.19980835,237.41,237.4,6.38856014]
[1758304257235,33.19980835,237.41,237.4,0.69]
[1758304257436,36.0215614,237.41,237.38,0.2]
[1758304257637,33.19980835,237.41,237.38,0.9]
[1758304257940,33.19980835,237.41,237.4,1.48626023]
[1758304258242,33.19980835,237.41,237.4,0.7]
[1758304258833,33.19980835,237.41,237.4,2.18626023]
[1758304261227,33.19980835,237.41,237.38,1.68626023]
[1758304261432,36.06135393,237.4,237.38,1.48477488]
[1758304261615,2.82121206,237.39,237.38,0.2]
[1758304261823,4.96747229,237.39,237.38,0.2]
[1758304265056,3.48121206,237.39,237.38,0.2]
[1758304265251,4.96747229,237.39,237.38,0.2]
[1758304266371,34.02121206,237.39,237.38,0.2]
[1758304266540,34.02121206,237.39,237.38,0.88]
[1758304266722,66.60121206,237.39,237.38,0.88]
[1758304267133,66.60121206,237.39,237.38,0.2]
[1758304272444,66.60121206,237.39,237.38,1.48477488]
[1758304273676,2.82121206,237.39,237.38,8.69951198]
[1758304273856,2.82121206,237.4,237.38,8.69951198]
[1758304274059,2.82121206,237.4,237.39,0.68]
[1758304274376,33.19980835,237.41,237.39,0.68]
[1758304274577,33.19980835,237.41,237.4,2.32208229]
[1758304274746,33.19980835,237.41,237.4,7.2143822]
[1758304276660,33.19980835,237.41,237.4,8.49915708]
[1758304282668,33.19980835,237.41,237.4,22.09475109]
[1758304283376,33.19980835,237.41,237.4,34.75591718]
[1758304283551,33.19980835,237.41,237.4,165.95591718]
[1758304283750,11.36214053,237.41,237.4,165.95591718]
[1758304284259,0.66,237.53,237.41,13.59559401]
[1758304284573,31.2,237.5,237.49,2.32208229]
[1758304284766,34.67998949,237.5,237.49,1.28477488]
[1758304285476,31.2,237.48,237.4,1.28477488]
[1758304285668,13.59559401,237.56,237.4,1.28477488]
[1758304285669,31.2,237.44,237.4,1.28477488]
[1758304285848,64.45,237.44,237.4,5.49707064]
[1758304286052,0.67,237.43,237.4,5.49707064]
[1758304288180,63.78,237.44,237.4,5.49707064]
[1758304288371,64.45,237.44,237.4,5.49707064]
[1758304290371,0.67,237.43,237.4,5.49707064]
[1758304291071,63.78,237.44,237.4,5.49707064]
[1758304291278,3.49208431,237.43,237.4,5.49707064]
[1758304291478,0.67,237.43,237.4,5.49707064]
[1758304291786,0.67,237.42,237.4,5.49707064]
[1758304292090,0.67,237.42,237.4,1.28477488]
[1758304292265,33.23,237.41,237.38,1.48477488]
[1758304292468,31.2,237.39,237.38,1.48477488]
[1758304292980,33.23,237.39,237.38,1.48477488]
[1758304294075,36.05114573,237.39,237.38,1.48477488]
[1758304297365,36.05114573,237.39,237.38,0.2]
[1758304297563,38.37322802,237.39,237.38,0.2]
[1758304301076,35.55208229,237.39,237.38,0.2]
[1758304302580,37.24144983,237.39,237.38,0.2]
[1758304302874,40.05949366,237.39,237.38,0.2]
[1758304303585,57.86756502,237.39,237.38,0.2]
[1758304305171,53.65508767,237.39,237.38,0.2]
[1758304305595,51.96572013,237.39,237.38,0.2]
[1758304308890,5.14012612,237.39,237.38,0.2]
[1758304309081,34.90208229,237.39,237.38,0.2]
[1758304309298,38.39012612,237.39,237.38,0.2]
[1758304318106,69.61012612,237.39,237.38,0.2]
[1758304322100,36.34012612,237.39,237.38,0.2]
[1758304322294,68.92012612,237.39,237.38,0.2]
[1758304322496,36.34012612,237.39,237.38,0.2]
[1758304322795,68.92012612,237.39,237.38,0.2]
[1758304322998,37.72012612,237.39,237.38,0.2]
[1758304323181,38.40012612,237.39,237.38,0.2]
[1758304324212,51.99572013,237.39,237.38,0.2]
[1758304324391,13.59559401,237.38,237.37,0.2]
[1758304324586,16.41363784,237.38,237.37,0.2]
[1758304324788,17.09363784,237.38,237.37,0.2]
[1758304325398,44.79559401,237.36,237.35,0.2]
[1758304325608,82.51572013,237.36,237.35,0.2]
[1758304325910,83.19572013,237.36,237.35,0.2]
[1758304326089,87.4087299,237.36,237.35,0.2]
[1758304328418,83.19572013,237.36,237.35,0.2]
[1758304328782,49.93572013,237.36,237.35,0.2]
[1758304329112,68.92012612,237.36,237.35,0.92]
[1758304329282,2.81804383,237.36,237.35,0.92]
[1758304329602,32.58,237.36,237.35,0.2]
[1758304329791,35.39804383,237.36,237.35,0.2]
[1758304331107,53.88664761,237.36,237.35,0.2]
[1758304333911,55.37437658,237.36,237.35,0.2]
[1758304336613,55.37437658,237.36,237.33,0.2]
[1758304336921,55.37437658,237.36,237.3,0.2]
[1758304336922,44.79559401,237.31,237.3,0.2]
[1758304337100,87.63228269,237.31,237.3,0.2]
[1758304337417,88.31228269,237.31,237.3,0.2]
[1758304337614,88.31228269,237.31,237.29,0.2]
[1758304337815,3.49804383,237.3,237.26,0.2]
[1758304338017,34.06772897,237.29,237.26,0.92]
[1758304338226,36.8857728,237.29,237.26,0.92]
[1758304338906,4.3057728,237.29,237.26,0.92]
[1758304339106,34.06772897,237.29,237.26,0.92]
[1758304339324,36.8857728,237.29,237.26,0.92]
[1758304341295,36.8857728,237.29,237.26,0.2]
[1758304342198,36.8857728,237.29,237.28,0.92]
[1758304342828,36.8857728,237.29,237.28,0.2]
[1758304346509,31.2,237.27,237.26,0.2]
[1758304346828,68.0857728,237.27,237.26,0.2]
[1758304348831,4.3057728,237.27,237.26,0.2]
[1758304349143,69.4823368,237.27,237.26,0.2]
[1758304349316,68.0857728,237.27,237.26,0.2]